[Event "Late-Titled-Tuesday-Blitz-July-09-2024"]
[Site "Chess.com"]
[Date "2024.07.09"]
[Round "10"]
[White "BogdanDeac"]
[Black "krzyzan94"]
[Result "1/2-1/2"]
[WhiteElo "2960"]
[BlackElo "2795"]
[TimeControl "180+1"]
[EndTime "15:55:02 PDT"]
[Termination "Game drawn by stalemate"]

1. Nf3 {[%clk 0:03:00.9]} 1... c5 {[%clk 0:02:57.9]} 2. c4 {[%clk 0:02:50.1]}
2... Nc6 {[%clk 0:02:56.5]} 3. d4 {[%clk 0:02:49.9]} 3... cxd4 {[%clk 0:02:54]}
4. Nxd4 {[%clk 0:02:50.8]} 4... g6 {[%clk 0:02:48.3]} 5. e4 {[%clk 0:02:50]}
5... Nf6 {[%clk 0:02:47.6]} 6. Nc3 {[%clk 0:02:48.8]} 6... d6 {[%clk 0:02:45.7]}
7. f3 {[%clk 0:02:48.5]} 7... Nxd4 {[%clk 0:02:44.6]} 8. Qxd4 {[%clk 0:02:48.4]}
8... Bg7 {[%clk 0:02:45.2]} 9. Be3 {[%clk 0:02:47.8]} 9... O-O {[%clk
0:02:44.3]} 10. Qd2 {[%clk 0:02:47.7]} 10... a5 {[%clk 0:02:44.3]} 11. b3 {[%clk
0:02:46]} 11... Be6 {[%clk 0:02:35.7]} 12. Rc1 {[%clk 0:02:44.4]} 12... Nd7
{[%clk 0:02:33.8]} 13. Be2 {[%clk 0:02:41.3]} 13... Nc5 {[%clk 0:02:23]} 14. O-O
{[%clk 0:02:27]} 14... f5 {[%clk 0:02:20.7]} 15. exf5 {[%clk 0:02:23.3]} 15...
gxf5 {[%clk 0:02:19]} 16. Bd4 {[%clk 0:02:13.2]} 16... Bxd4+ {[%clk 0:02:08]}
17. Qxd4 {[%clk 0:02:12.1]} 17... Nd7 {[%clk 0:02:08.7]} 18. Rfe1 {[%clk
0:01:56.3]} 18... Qb6 {[%clk 0:02:00.3]} 19. Qxb6 {[%clk 0:01:36.8]} 19... Nxb6
{[%clk 0:02:01.2]} 20. Bd3 {[%clk 0:01:36.8]} 20... Rf6 {[%clk 0:01:53.3]} 21.
Nb5 {[%clk 0:01:24.4]} 21... Kf7 {[%clk 0:01:24.2]} 22. Nc7 {[%clk 0:01:05.8]}
22... Rd8 {[%clk 0:00:51.3]} 23. Nxe6 {[%clk 0:00:54.9]} 23... Rxe6 {[%clk
0:00:52.2]} 24. Bxf5 {[%clk 0:00:55.3]} 24... Rh6 {[%clk 0:00:48.9]} 25. c5
{[%clk 0:00:49.2]} 25... dxc5 {[%clk 0:00:46.3]} 26. Rxc5 {[%clk 0:00:48.4]}
26... Rd2 {[%clk 0:00:41.8]} 27. Rxa5 {[%clk 0:00:44.1]} 27... Rhd6 {[%clk
0:00:28.2]} 28. Be4 {[%clk 0:00:26.2]} 28... Rb2 {[%clk 0:00:17.7]} 29. Rf5+
{[%clk 0:00:18]} 29... Kg7 {[%clk 0:00:17.3]} 30. Bxb7 {[%clk 0:00:16.2]} 30...
Rdd2 {[%clk 0:00:16.1]} 31. f4 {[%clk 0:00:13.3]} 31... Nd7 {[%clk 0:00:10.8]}
32. Bf3 {[%clk 0:00:07.9]} 32... e6 {[%clk 0:00:05]} 33. Rg5+ {[%clk 0:00:07.2]}
33... Kf6 {[%clk 0:00:03.6]} 34. Rh5 {[%clk 0:00:07.5]} 34... Nf8 {[%clk
0:00:03.1]} 35. Rg5 {[%clk 0:00:03.5]} 35... Rxa2 {[%clk 0:00:03.4]} 36. Rh5
{[%clk 0:00:03.4]} 36... Rab2 {[%clk 0:00:03]} 37. h3 {[%clk 0:00:03.3]} 37...
Rxb3 {[%clk 0:00:03.5]} 38. Ra5 {[%clk 0:00:02.9]} 38... Rbb2 {[%clk 0:00:03.7]}
39. Re4 {[%clk 0:00:02.6]} 39... Ng6 {[%clk 0:00:03.2]} 40. Kh2 {[%clk
0:00:02.7]} 40... Rf2 {[%clk 0:00:03]} 41. Kg3 {[%clk 0:00:02.9]} 41... Rfd2
{[%clk 0:00:02.9]} 42. Ra6 {[%clk 0:00:03.2]} 42... Nf8 {[%clk 0:00:03]} 43.
Rea4 {[%clk 0:00:03.1]} 43... Rd3 {[%clk 0:00:03.1]} 44. Rc4 {[%clk 0:00:03.2]}
44... Rbb3 {[%clk 0:00:02.9]} 45. Re4 {[%clk 0:00:03.5]} 45... Rdc3 {[%clk
0:00:03]} 46. Kh2 {[%clk 0:00:03.6]} 46... Re3 {[%clk 0:00:03.2]} 47. Rxe3
{[%clk 0:00:03.2]} 47... Rxe3 {[%clk 0:00:04.1]} 48. Kg3 {[%clk 0:00:03.8]}
48... Rc3 {[%clk 0:00:04]} 49. Kf2 {[%clk 0:00:03.6]} 49... Ng6 {[%clk
0:00:04.1]} 50. g3 {[%clk 0:00:04.1]} 50... Nf8 {[%clk 0:00:03.9]} 51. Bg4
{[%clk 0:00:04.2]} 51... Rc2+ {[%clk 0:00:04.5]} 52. Be2 {[%clk 0:00:04.1]}
52... Rc3 {[%clk 0:00:05.4]} 53. Bf3 {[%clk 0:00:04]} 53... Nd7 {[%clk
0:00:05.5]} 54. Bg4 {[%clk 0:00:03.5]} 54... Nc5 {[%clk 0:00:05.7]} 55. Rb6
{[%clk 0:00:03.6]} 55... Ne4+ {[%clk 0:00:06.2]} 56. Ke1 {[%clk 0:00:03]} 56...
Re3+ {[%clk 0:00:05.8]} 57. Kd1 {[%clk 0:00:03.1]} 57... Nf2+ {[%clk 0:00:06.4]}
58. Kd2 {[%clk 0:00:02.4]} 58... Nxg4 {[%clk 0:00:07]} 59. hxg4 {[%clk 0:00:03]}
59... Rxg3 {[%clk 0:00:07.9]} 60. g5+ {[%clk 0:00:03.1]} 60... Kf5 {[%clk
0:00:08.4]} 61. Ke2 {[%clk 0:00:03.4]} 61... Kxf4 {[%clk 0:00:07.5]} 62. Rxe6
{[%clk 0:00:03.3]} 62... Kxg5 {[%clk 0:00:07]} 63. Re7 {[%clk 0:00:03.5]} 63...
h5 {[%clk 0:00:06.7]} 64. Rg7+ {[%clk 0:00:03.8]} 64... Kh4 {[%clk 0:00:07]} 65.
Rxg3 {[%clk 0:00:04.7]} 65... Kxg3 {[%clk 0:00:07.9]} 66. Kf1 {[%clk 0:00:05.5]}
66... h4 {[%clk 0:00:08.3]} 67. Kg1 {[%clk 0:00:05.9]} 67... h3 {[%clk 0:00:09]}
68. Kh1 {[%clk 0:00:06.8]} 68... h2 {[%clk 0:00:09.5]} 1/2-1/2

[Event "Late-Titled-Tuesday-Blitz-July-09-2024"]
[Site "Chess.com"]
[Date "2024.07.09"]
[Round "10"]
[White "urano56"]
[Black "Zq1"]
[Result "0-1"]
[WhiteElo "2425"]
[BlackElo "2587"]
[TimeControl "180+1"]
[EndTime "15:55:16 PDT"]
[Termination "Zq1 won by resignation"]

1. e4 {[%clk 0:03:00.9]} 1... c5 {[%clk 0:02:59.1]} 2. Nf3 {[%clk 0:03:00.7]}
2... d6 {[%clk 0:02:59.3]} 3. d4 {[%clk 0:03:00.9]} 3... cxd4 {[%clk 0:02:59.1]}
4. Nxd4 {[%clk 0:03:01.8]} 4... Nf6 {[%clk 0:02:59]} 5. Nc3 {[%clk 0:03:02]}
5... Nc6 {[%clk 0:02:59.1]} 6. Bg5 {[%clk 0:03:00.9]} 6... g6 {[%clk 0:02:58.2]}
7. Qd2 {[%clk 0:02:51.9]} 7... Bg7 {[%clk 0:02:56.2]} 8. O-O-O {[%clk
0:02:51.4]} 8... Nxe4 {[%clk 0:02:44.5]} 9. Nxc6 {[%clk 0:02:47.1]} 9... Nxd2
{[%clk 0:02:44.3]} 10. Nxd8 {[%clk 0:02:46.8]} 10... Nxf1 {[%clk 0:02:42.8]} 11.
Rhxf1 {[%clk 0:02:44.9]} 11... f6 {[%clk 0:02:39.3]} 12. Be3 {[%clk 0:02:25.1]}
12... Kxd8 {[%clk 0:02:37.7]} 13. Nb5 {[%clk 0:02:24.5]} 13... a6 {[%clk
0:02:16.3]} 14. Bb6+ {[%clk 0:02:23.2]} 14... Kd7 {[%clk 0:02:16.3]} 15. Nc7
{[%clk 0:02:22.9]} 15... Rb8 {[%clk 0:02:14.7]} 16. Nd5 {[%clk 0:02:22.9]} 16...
e6 {[%clk 0:01:52.9]} 17. Nc3 {[%clk 0:02:20.7]} 17... Kc6 {[%clk 0:01:46.2]}
18. Ba7 {[%clk 0:02:18.9]} 18... Ra8 {[%clk 0:01:44.9]} 19. Be3 {[%clk
0:02:18.2]} 19... b5 {[%clk 0:01:39.3]} 20. f4 {[%clk 0:02:15.8]} 20... Bb7
{[%clk 0:01:36.5]} 21. g4 {[%clk 0:02:14.1]} 21... f5 {[%clk 0:01:32.6]} 22.
gxf5 {[%clk 0:02:11.5]} 22... gxf5 {[%clk 0:01:32.3]} 23. Ne2 {[%clk 0:02:04.3]}
23... Rac8 {[%clk 0:01:23.4]} 24. Nd4+ {[%clk 0:02:01.5]} 24... Kd7 {[%clk
0:01:21.4]} 25. Rg1 {[%clk 0:01:59.4]} 25... Bf6 {[%clk 0:01:20.8]} 26. Rd2
{[%clk 0:01:58.7]} 26... Be4 {[%clk 0:01:17.5]} 27. Rgd1 {[%clk 0:01:55.6]}
27... d5 {[%clk 0:01:09.7]} 28. Nb3 {[%clk 0:01:49.2]} 28... Kd6 {[%clk
0:00:56.8]} 29. Bd4 {[%clk 0:01:35.4]} 29... Bxd4 {[%clk 0:00:54.8]} 30. Nxd4
{[%clk 0:01:36.3]} 30... Rhg8 {[%clk 0:00:51.9]} 31. b3 {[%clk 0:01:35.7]} 31...
Rg4 {[%clk 0:00:46.1]} 32. Rf1 {[%clk 0:01:35]} 32... b4 {[%clk 0:00:42]} 33.
Kb2 {[%clk 0:01:33.5]} 33... Rcg8 {[%clk 0:00:40]} 34. a3 {[%clk 0:01:29.4]}
34... bxa3+ {[%clk 0:00:37.8]} 35. Kxa3 {[%clk 0:01:30.3]} 35... Rg1 {[%clk
0:00:37]} 36. Rff2 {[%clk 0:01:25.6]} 36... R8g2 {[%clk 0:00:34.6]} 37. c4
{[%clk 0:01:20.8]} 37... Rxf2 {[%clk 0:00:31.6]} 38. Rxf2 {[%clk 0:01:20.9]}
38... dxc4 {[%clk 0:00:30.7]} 39. bxc4 {[%clk 0:01:20.6]} 39... Rg2 {[%clk
0:00:28.2]} 40. Rf1 {[%clk 0:01:20.1]} 40... Rd2 {[%clk 0:00:25.9]} 41. Nb3
{[%clk 0:01:17.4]} 41... Rd3 {[%clk 0:00:25.6]} 42. c5+ {[%clk 0:01:16.3]} 42...
Kd5 {[%clk 0:00:23.1]} 43. Rc1 {[%clk 0:01:11.9]} 43... Kc6 {[%clk 0:00:21]} 44.
Kb4 {[%clk 0:01:03]} 44... Bd5 {[%clk 0:00:20.3]} 45. Na5+ {[%clk 0:01:02.9]}
45... Kc7 {[%clk 0:00:20.5]} 46. c6 {[%clk 0:01:03.4]} 46... Rd4+ {[%clk
0:00:17.9]} 47. Kc5 {[%clk 0:01:02.2]} 47... Ra4 {[%clk 0:00:17.4]} 48. Nb7
{[%clk 0:00:54.3]} 48... Bxc6 {[%clk 0:00:16.6]} 49. Nd6 {[%clk 0:00:36]} 49...
Rxf4 {[%clk 0:00:14.6]} 50. Nc4 {[%clk 0:00:33.8]} 50... Re4 {[%clk 0:00:11.9]}
51. Rg1 {[%clk 0:00:32.9]} 51... Rg4 {[%clk 0:00:09.5]} 52. Re1 {[%clk
0:00:31.1]} 52... Bd5 {[%clk 0:00:06.6]} 53. Nb6 {[%clk 0:00:23.7]} 53... Re4
{[%clk 0:00:06]} 54. Rg1 {[%clk 0:00:19.6]} 54... Rg4 {[%clk 0:00:05.8]} 55. Re1
{[%clk 0:00:19.4]} 55... Be4 {[%clk 0:00:05.1]} 56. Rd1 {[%clk 0:00:18.5]} 56...
Rg7 {[%clk 0:00:05.2]} 57. Na8+ {[%clk 0:00:16.9]} 57... Bxa8 {[%clk 0:00:03.7]}
58. Rd6 {[%clk 0:00:15.2]} 58... Bd5 {[%clk 0:00:03.9]} 59. Rb6 {[%clk 0:00:15]}
59... Rg4 {[%clk 0:00:04.1]} 60. Rxa6 {[%clk 0:00:13.6]} 60... Rc4+ {[%clk
0:00:04.6]} 61. Kb5 {[%clk 0:00:14.1]} 61... Rc6 {[%clk 0:00:05]} 62. Ra7+
{[%clk 0:00:14.1]} 62... Kd6 {[%clk 0:00:05.6]} 63. Rxh7 {[%clk 0:00:14.8]}
63... Ke5 {[%clk 0:00:05.9]} 64. Rh4 {[%clk 0:00:14.3]} 64... Rc2 {[%clk
0:00:06.2]} 65. Kb4 {[%clk 0:00:12.8]} 65... Be4 {[%clk 0:00:06]} 66. Kb3 {[%clk
0:00:12.7]} 66... Rc7 {[%clk 0:00:05.8]} 67. Rh8 {[%clk 0:00:12.5]} 67... f4
{[%clk 0:00:05.4]} 68. h4 {[%clk 0:00:12.2]} 68... f3 {[%clk 0:00:05.2]} 69. h5
{[%clk 0:00:12.8]} 69... Rf7 {[%clk 0:00:04.9]} 70. Rd8 {[%clk 0:00:12.4]} 70...
f2 {[%clk 0:00:04.9]} 71. Kc3 {[%clk 0:00:12.4]} 71... f1=Q {[%clk 0:00:04.8]}
72. Rd2 {[%clk 0:00:12.3]} 72... Qe1 {[%clk 0:00:04.7]} 73. h6 {[%clk
0:00:10.8]} 73... Qxd2+ {[%clk 0:00:05]} 74. Kxd2 {[%clk 0:00:11]} 74... Rh7
{[%clk 0:00:05.4]} 75. Ke3 {[%clk 0:00:11.1]} 75... Rxh6 {[%clk 0:00:05.9]} 0-1

[Event "Late-Titled-Tuesday-Blitz-July-09-2024"]
[Site "Chess.com"]
[Date "2024.07.09"]
[Round "10"]
[White "Robert_Oros"]
[Black "annasargsyan_m"]
[Result "0-1"]
[WhiteElo "2357"]
[BlackElo "2695"]
[TimeControl "180+1"]
[EndTime "15:55:17 PDT"]
[Termination "annasargsyan_m won on time"]

1. d4 {[%clk 0:03:00.9]} 1... d5 {[%clk 0:02:59.6]} 2. c4 {[%clk 0:02:59.5]}
2... c6 {[%clk 0:02:59.4]} 3. Nf3 {[%clk 0:02:58.4]} 3... Nf6 {[%clk 0:02:59.9]}
4. e3 {[%clk 0:02:58.2]} 4... Bg4 {[%clk 0:02:59.5]} 5. cxd5 {[%clk 0:02:52.2]}
5... cxd5 {[%clk 0:02:57.1]} 6. Qb3 {[%clk 0:02:52.7]} 6... Qb6 {[%clk
0:02:53.8]} 7. Ne5 {[%clk 0:02:39.7]} 7... Bd7 {[%clk 0:02:49.9]} 8. Nc3 {[%clk
0:02:33.5]} 8... e6 {[%clk 0:02:49.7]} 9. Bb5 {[%clk 0:02:22.5]} 9... Bxb5
{[%clk 0:02:44.4]} 10. Qxb5+ {[%clk 0:02:22.2]} 10... Nbd7 {[%clk 0:02:34.9]}
11. Qxb6 {[%clk 0:02:16.1]} 11... Nxb6 {[%clk 0:02:23.4]} 12. Nb5 {[%clk
0:02:15.9]} 12... Bb4+ {[%clk 0:02:23]} 13. Ke2 {[%clk 0:02:13.7]} 13... O-O
{[%clk 0:02:16]} 14. a3 {[%clk 0:02:11.8]} 14... Be7 {[%clk 0:02:15.2]} 15. f3
{[%clk 0:02:02.2]} 15... Na4 {[%clk 0:02:00.5]} 16. b3 {[%clk 0:01:57.6]} 16...
Nb6 {[%clk 0:02:00.4]} 17. Bd2 {[%clk 0:01:55.6]} 17... a6 {[%clk 0:01:59.5]}
18. Nc3 {[%clk 0:01:52.1]} 18... Rac8 {[%clk 0:02:00.1]} 19. Kd3 {[%clk
0:01:43]} 19... Rc7 {[%clk 0:02:00.5]} 20. Rhc1 {[%clk 0:01:37.8]} 20... Rfc8
{[%clk 0:02:01.1]} 21. a4 {[%clk 0:01:33]} 21... Ne8 {[%clk 0:02:00.5]} 22. a5
{[%clk 0:01:22.7]} 22... Na8 {[%clk 0:02:00.3]} 23. Na4 {[%clk 0:01:16.9]} 23...
f6 {[%clk 0:02:00.1]} 24. Nd7 {[%clk 0:01:15.5]} 24... Kf7 {[%clk 0:01:54.9]}
25. Nab6 {[%clk 0:01:13.3]} 25... Rd8 {[%clk 0:01:55]} 26. Nxa8 {[%clk
0:01:11.4]} 26... Rxa8 {[%clk 0:01:51]} 27. Rxc7 {[%clk 0:01:08.9]} 27... Nxc7
{[%clk 0:01:49.5]} 28. Rc1 {[%clk 0:01:08.4]} 28... Nb5 {[%clk 0:01:45.9]} 29.
Nb6 {[%clk 0:01:02.6]} 29... Rd8 {[%clk 0:01:46.1]} 30. f4 {[%clk 0:00:57.7]}
30... e5 {[%clk 0:01:42.4]} 31. fxe5 {[%clk 0:00:56.8]} 31... fxe5 {[%clk
0:01:43.3]} 32. dxe5 {[%clk 0:00:53.9]} 32... Ke6 {[%clk 0:01:42.3]} 33. Rc8
{[%clk 0:00:48.3]} 33... Kxe5 {[%clk 0:01:42.3]} 34. Rxd8 {[%clk 0:00:45.4]}
34... Bxd8 {[%clk 0:01:43.2]} 35. Na4 {[%clk 0:00:31.9]} 35... g6 {[%clk
0:01:10.5]} 36. Be1 {[%clk 0:00:30.5]} 36... Kd6 {[%clk 0:01:07.2]} 37. Bg3+
{[%clk 0:00:28.1]} 37... Kc6 {[%clk 0:01:07.1]} 38. Be1 {[%clk 0:00:25.2]} 38...
Nd6 {[%clk 0:01:07.5]} 39. Bb4 {[%clk 0:00:22.3]} 39... Ne4 {[%clk 0:01:06.4]}
40. Be1 {[%clk 0:00:19.6]} 40... Nc5+ {[%clk 0:01:05.6]} 41. Nxc5 {[%clk
0:00:18.6]} 41... Kxc5 {[%clk 0:01:06.5]} 42. b4+ {[%clk 0:00:16.7]} 42... Kc6
{[%clk 0:00:58.5]} 43. Bc3 {[%clk 0:00:15.5]} 43... b6 {[%clk 0:00:55.9]} 44.
axb6 {[%clk 0:00:14.5]} 44... Bxb6 {[%clk 0:00:56.8]} 45. Be1 {[%clk 0:00:14.5]}
45... Kb5 {[%clk 0:00:57]} 46. Bd2 {[%clk 0:00:13.8]} 46... Ba7 {[%clk
0:00:56.5]} 47. Be1 {[%clk 0:00:13.3]} 47... Ka4 {[%clk 0:00:43.8]} 48. h3
{[%clk 0:00:12.7]} 48... Kb3 {[%clk 0:00:44]} 49. Bd2 {[%clk 0:00:11.8]} 49...
Bb6 {[%clk 0:00:43.9]} 50. Be1 {[%clk 0:00:11.8]} 50... Ka4 {[%clk 0:00:36.5]}
51. Bd2 {[%clk 0:00:10.9]} 51... Kb5 {[%clk 0:00:37.2]} 52. Be1 {[%clk
0:00:10.9]} 52... Kc6 {[%clk 0:00:37.9]} 53. Bc3 {[%clk 0:00:10]} 53... Bc7
{[%clk 0:00:34.2]} 54. Be1 {[%clk 0:00:08.2]} 54... Bd8 {[%clk 0:00:34]} 55. Bc3
{[%clk 0:00:07.6]} 55... Be7 {[%clk 0:00:34.6]} 56. Bd2 {[%clk 0:00:06]} 56...
Bf8 {[%clk 0:00:33.2]} 57. Be1 {[%clk 0:00:05]} 57... Kb5 {[%clk 0:00:12.4]} 58.
Kd4 {[%clk 0:00:05]} 58... Bxb4 {[%clk 0:00:13]} 59. Bxb4 {[%clk 0:00:04.2]}
59... Kxb4 {[%clk 0:00:13.9]} 60. Kxd5 {[%clk 0:00:04.6]} 60... a5 {[%clk
0:00:14.7]} 61. e4 {[%clk 0:00:05]} 61... a4 {[%clk 0:00:15.6]} 62. e5 {[%clk
0:00:05.6]} 62... a3 {[%clk 0:00:16.5]} 63. e6 {[%clk 0:00:06.3]} 63... a2
{[%clk 0:00:17.4]} 64. e7 {[%clk 0:00:06.9]} 64... a1=Q {[%clk 0:00:18.3]} 65.
e8=Q {[%clk 0:00:06.1]} 65... Qa2+ {[%clk 0:00:18.4]} 66. Kd6 {[%clk 0:00:04.7]}
66... Qxg2 {[%clk 0:00:16.1]} 67. Qb8+ {[%clk 0:00:03]} 67... Kc4 {[%clk
0:00:15.9]} 68. Qc7+ {[%clk 0:00:02.3]} 68... Kd3 {[%clk 0:00:15.2]} 69. Qxh7
{[%clk 0:00:02]} 69... Ke4 {[%clk 0:00:13.6]} 70. Ke7 {[%clk 0:00:01.1]} 70...
Kf5 {[%clk 0:00:11.1]} 0-1

[Event "Late-Titled-Tuesday-Blitz-July-09-2024"]
[Site "Chess.com"]
[Date "2024.07.09"]
[Round "10"]
[White "fugadelafuga"]
[Black "Love7Unicorn"]
[Result "1/2-1/2"]
[WhiteElo "2464"]
[BlackElo "2590"]
[TimeControl "180+1"]
[EndTime "15:55:32 PDT"]
[Termination "Game drawn - insufficient material"]

1. c4 {[%clk 0:03:00.9]} 1... e6 {[%clk 0:02:59.5]} 2. Nf3 {[%clk 0:03:00.4]}
2... Nf6 {[%clk 0:02:58.2]} 3. b3 {[%clk 0:03:01.3]} 3... a6 {[%clk 0:02:57]} 4.
Bb2 {[%clk 0:03:02.2]} 4... b5 {[%clk 0:02:57.6]} 5. e3 {[%clk 0:02:57.8]} 5...
b4 {[%clk 0:02:53.6]} 6. d4 {[%clk 0:02:54.4]} 6... Bb7 {[%clk 0:02:51.4]} 7.
Be2 {[%clk 0:02:50.8]} 7... a5 {[%clk 0:02:47.2]} 8. a3 {[%clk 0:02:50.2]} 8...
Be7 {[%clk 0:02:29.1]} 9. O-O {[%clk 0:02:49.4]} 9... O-O {[%clk 0:02:28.8]} 10.
axb4 {[%clk 0:02:48.2]} 10... axb4 {[%clk 0:02:29.7]} 11. Rxa8 {[%clk
0:02:48.2]} 11... Bxa8 {[%clk 0:02:30.6]} 12. Nbd2 {[%clk 0:02:40.6]} 12... c5
{[%clk 0:02:28]} 13. Bd3 {[%clk 0:02:33.6]} 13... Nc6 {[%clk 0:02:19.5]} 14. Ne4
{[%clk 0:02:24.8]} 14... Nxe4 {[%clk 0:01:45.5]} 15. Bxe4 {[%clk 0:02:25.7]}
15... d5 {[%clk 0:01:46.2]} 16. cxd5 {[%clk 0:02:21.5]} 16... exd5 {[%clk
0:01:20]} 17. Bd3 {[%clk 0:02:16.2]} 17... Bf6 {[%clk 0:01:12.7]} 18. Qc2 {[%clk
0:01:46.9]} 18... cxd4 {[%clk 0:01:12.8]} 19. Nxd4 {[%clk 0:01:40.6]} 19... Nxd4
{[%clk 0:01:12]} 20. Bxd4 {[%clk 0:01:36.7]} 20... Bxd4 {[%clk 0:01:12]} 21.
exd4 {[%clk 0:01:34.3]} 21... h6 {[%clk 0:01:03.2]} 22. Qc5 {[%clk 0:01:25.7]}
22... Qb8 {[%clk 0:00:56.5]} 23. Rc1 {[%clk 0:01:11.6]} 23... h5 {[%clk
0:00:46.4]} 24. h4 {[%clk 0:01:05.7]} 24... Bb7 {[%clk 0:00:40.7]} 25. Qxb4
{[%clk 0:00:54]} 25... Qf4 {[%clk 0:00:40.5]} 26. Re1 {[%clk 0:00:50.3]} 26...
Bc8 {[%clk 0:00:37.7]} 27. g3 {[%clk 0:00:46.6]} 27... Qf6 {[%clk 0:00:34.2]}
28. Re5 {[%clk 0:00:44.7]} 28... g6 {[%clk 0:00:21.4]} 29. Qe7 {[%clk
0:00:41.8]} 29... Qb6 {[%clk 0:00:16.9]} 30. Rg5 {[%clk 0:00:30]} 30... Bh3
{[%clk 0:00:11]} 31. Bf1 {[%clk 0:00:17.8]} 31... Bxf1 {[%clk 0:00:09.2]} 32.
Kxf1 {[%clk 0:00:18.7]} 32... Qxd4 {[%clk 0:00:09.2]} 33. b4 {[%clk 0:00:14.1]}
33... Rc8 {[%clk 0:00:05]} 34. Re5 {[%clk 0:00:07.2]} 34... Rc1+ {[%clk
0:00:03.4]} 35. Kg2 {[%clk 0:00:06.1]} 35... Rc8 {[%clk 0:00:02.1]} 36. b5
{[%clk 0:00:05.1]} 36... Qc5 {[%clk 0:00:01.2]} 37. Qd7 {[%clk 0:00:03.4]} 37...
d4 {[%clk 0:00:01]} 38. Re8+ {[%clk 0:00:02.8]} 38... Rxe8 {[%clk 0:00:01.2]}
39. Qxe8+ {[%clk 0:00:03.7]} 39... Kg7 {[%clk 0:00:02.1]} 40. Qc6 {[%clk
0:00:04.2]} 40... Qe7 {[%clk 0:00:01.8]} 41. b6 {[%clk 0:00:03.5]} 41... d3
{[%clk 0:00:01.4]} 42. b7 {[%clk 0:00:03.2]} 42... d2 {[%clk 0:00:01.3]} 43.
b8=Q {[%clk 0:00:02.7]} 43... d1=Q {[%clk 0:00:01.3]} 44. Qb2+ {[%clk
0:00:03.6]} 44... Kh7 {[%clk 0:00:01.4]} 45. Qf3 {[%clk 0:00:03.3]} 45... Qdd6
{[%clk 0:00:01.4]} 46. Qbe2 {[%clk 0:00:02.8]} 46... Qxe2 {[%clk 0:00:01]} 47.
Qxe2 {[%clk 0:00:03.7]} 47... Qf6 {[%clk 0:00:01.6]} 48. Qf3 {[%clk 0:00:04.6]}
48... Qe6 {[%clk 0:00:02]} 49. Qf4 {[%clk 0:00:04.6]} 49... Kg8 {[%clk
0:00:02.4]} 50. Qg5 {[%clk 0:00:05]} 50... Kf8 {[%clk 0:00:02.9]} 51. Qd8+
{[%clk 0:00:05]} 51... Kg7 {[%clk 0:00:03.4]} 52. Qg5 {[%clk 0:00:05.6]} 52...
Qe4+ {[%clk 0:00:03.7]} 53. Kg1 {[%clk 0:00:04.6]} 53... Kf8 {[%clk 0:00:04.2]}
54. Qd2 {[%clk 0:00:04.8]} 54... Ke7 {[%clk 0:00:04.5]} 55. Qb2 {[%clk
0:00:04.6]} 55... Ke6 {[%clk 0:00:04.8]} 56. Qb6+ {[%clk 0:00:04.8]} 56... Kf5
{[%clk 0:00:05.2]} 57. Qb5+ {[%clk 0:00:04.5]} 57... Kg4 {[%clk 0:00:04.9]} 58.
Qd7+ {[%clk 0:00:03.2]} 58... f5 {[%clk 0:00:05.3]} 59. Qd1+ {[%clk 0:00:01.2]}
59... Kh3 {[%clk 0:00:03.3]} 60. Qf1+ {[%clk 0:00:01.8]} 60... Kg4 {[%clk
0:00:04]} 61. Qg2 {[%clk 0:00:02.3]} 61... Qf3 {[%clk 0:00:02.6]} 62. Qf1 {[%clk
0:00:02.1]} 62... Qd5 {[%clk 0:00:01.6]} 63. Qg2 {[%clk 0:00:02.1]} 63... Qe4
{[%clk 0:00:01.4]} 64. Qxe4+ {[%clk 0:00:01.9]} 64... fxe4 {[%clk 0:00:02.3]}
65. Kg2 {[%clk 0:00:02.6]} 65... g5 {[%clk 0:00:02.6]} 66. hxg5 {[%clk
0:00:02.8]} 66... Kxg5 {[%clk 0:00:03.5]} 67. f3 {[%clk 0:00:03.2]} 67... e3
{[%clk 0:00:03.1]} 68. f4+ {[%clk 0:00:03.3]} 68... Kg4 {[%clk 0:00:03.7]} 69.
Kf1 {[%clk 0:00:01.1]} 69... Kxg3 {[%clk 0:00:03.8]} 70. f5 {[%clk 0:00:02]}
70... h4 {[%clk 0:00:04.5]} 71. f6 {[%clk 0:00:02.6]} 71... h3 {[%clk
0:00:05.2]} 72. f7 {[%clk 0:00:02.9]} 72... h2 {[%clk 0:00:05.9]} 73. f8=Q
{[%clk 0:00:03]} 73... h1=Q+ {[%clk 0:00:06.5]} 74. Ke2 {[%clk 0:00:03.6]} 74...
Qh2+ {[%clk 0:00:02.5]} 75. Kxe3 {[%clk 0:00:04]} 75... Qh4 {[%clk 0:00:02.4]}
76. Qg7+ {[%clk 0:00:04.3]} 76... Qg4 {[%clk 0:00:02.8]} 77. Qxg4+ {[%clk
0:00:04.2]} 77... Kxg4 {[%clk 0:00:03.7]} 1/2-1/2